Workbook

Sheet Main Menu (hidden)
B39: Version | C39: 2019-10-31

Sheet Guide
K1: How To Guide - 3 Easy Steps
C3: STEP 1
C5: Obtain 30 day average rate from XE.com - copy and past the FX Rate proof page (see how to obtain rate and table to be used below)
C6: Foreign Currency Exchange Rate - www.xe.com
C15: STEP 2
C16: 2) Complete the Rate table. Enter all the currencies and rates you will be using (obtained from XE.com and in proof page). Exchange rates provided in this section will be populated for the rest of the relative currency conversions.
C17: 3) In ALL Cases, complete the Base FX Income fields
C18: 4) FX Bonus: use this section if applicant earned bonuses for 2 consecutive years OR if you will be using the bonus and base income to calculate overtime (note - if 2 years overtime is to be calculated and NIL bonuses earnt then place "0" in the relative bonus fields)
C19: 5) Overtime: only use one of the three sections: regular OT , OT by hour or OT by base and bonus.
C20: 6) Foreign Rental Income: complete as necessary
C21: 7) "Other FX Conversions" Will NOT pre-populate into the serviceability calculator. All manual conversions will need to be manually input and combined with any other expenses where appropriate.
C22: E.g.. You convert a Foreign Loan which results in AUD Limit of $100,000 and Monthly Repayment of $1,200 per month and in addition to that, the client has a loan in AUS with Limit of $250,000 and repayments of $2,800 per month.
C23: Total Limit to be expensed would be $350,000 and total monthly repayment to be entered would be $4,000 per month.
C26: STEP 3
C27: 1) Fields in YELLOW are to be completed where appropriate
C28: 2) 5% HEM To be "YES" where foreign income is involved
C29: 3) All YELLOW fields under the "Annual Income" Section is for any AUD income earnt by applicants
C30: 4) All Converted and FX shaded Foreign Income will automatically be pulled into the serviceability calculator. This section is in GREY and can not be amended in the serviceability section
C31: 5) All expenses are to be manually input (remember you can convert any foreign expenses and liabilities in the FX calculator to then manually input)
C32: 6) All figures input in the Serviceability section are in AUD

Sheet 1_FX_PROOF
B12: Foreign Currency Exchange Rate - www.xe.com
L28: PASTE RATES HERE

Sheet 2_FX_CALCULATOR
A1: =Guide!Z1 -> 0 | C1: Version: 26 Oct 2018
A3: Applicant 1
A4: Applicant 2 | D4: Rate Table
A5: Applicant 3 | D5: Currency | E5: 30-D Avg Rate (Base=AUD)
A6: Applicant 4 | D6: Select
A7: Select | D7: Select
A8: AED | B8: 0.08353982017 | C8: 90 | D8: Select
A9: BDT | C9: 90 | D9: Select
A10: BND | B10: wrong | C10: 90 | D10: Select
A11: CAD | B11: 0.06275695591 | C11: 90 | D11: Foreign Currency Exchange Rate - www.xe.com
A12: CHF | B12: 0.08040799567 | C12: 90
A13: CNY | B13: 0.07980518235 | C13: 90 | E13: Applicant 1 | F13: Applicant 2 | G13: Applicant 3 | H13: Applicant 4
A14: DKK | B14: 0.0617 | C14: 90 | D14: 1. Base FX Income
A15: EUR | B15: 0.06737608192 | C15: 90 | D15: Currency | E15: Select | F15: Select | G15: Select | H15: Select
A16: FJD | C16: 80 | D16: 30-D Avg Rate | E16: =IF(E15="Select","",IFERROR(VLOOKUP(E15,$D$6:$E$10,2,FALSE),"RATE TABLE")) ->  | F16: =IF(F15="Select","",IFERROR(VLOOKUP(F15,$D$6:$E$10,2,FALSE),"RATE TABLE")) -> 
A17: GBP | B17: 0.08995325434 | C17: 90 | D17: Income Cycle | E17: Select | F17: Select | G17: Select | H17: Select
A18: HKD | B18: 0.08312272336 | C18: 90 | D18: Pay Per Cycle
A19: IDR | B19: 0.09535530673 | C19: 90 | D19: Annualized Income | E19: =IFERROR(VLOOKUP(E17,$A$54:$B$58,2,FALSE)*E18,"") ->  | F19: =IFERROR(VLOOKUP(F17,$A$54:$B$58,2,FALSE)*F18,"") ->  | G19: =IFERROR(VLOOKUP(G17,$A$54:$B$58,2,FALSE)*G18,"") ->  | H19: =IFERROR(VLOOKUP(H17,$A$54:$B$58,2,FALSE)*H18,"") -> 
A20: INR | B20: 0.08462867811 | C20: 90 | D20: Shading | E20: =VLOOKUP(E15,$A$7:$C$45,3,FALSE) -> 0 | F20: =VLOOKUP(F15,$A$7:$C$45,3,FALSE) -> 0 | G20: 0 | H20: 0
A21: JPY | B21: 0.09526423792 | C21: 90 | D21: Shaded Income | E21: =IFERROR(E20*E19/100,"") ->  | F21: =IFERROR(F20*F19/100,"") -> 
A22: KRW | C22: 90 | D22: Shaded income - AUD | E22: =IFERROR(E21/E$16,0) -> 0 | F22: =IFERROR(F21/F$16,0) -> 0 | G22: 0 | H22: 0
A23: KWD | B23: 7.17 | C23: 90
A24: LKR | C24: 90 | D24: 2. FX Bonus (Annual)
A25: MNT | B25: 8.01 | C25: 90 | D25: Previous Bonus
A26: MOP | B26: 0.0823516369 | C26: 90 | D26: Latest Bonus
A27: MXN | B27: 0.0896 | C27: 90 | D27: Average Bonus | E27: =IFERROR(AVERAGE(E25:E26),"") ->  | F27: =IFERROR(AVERAGE(F25:F26),"") ->  | G27: =IFERROR(AVERAGE(G25:G26),"") -> 
A28: MYR | B28: 0.08586900771 | C28: 90 | D28: Shading | E28: =E20 -> 0 | F28: =F20 -> 0 | G28: 0 | H28: 0
A29: NOK | B29: 6.3 | C29: 90 | D29: Shaded Income | E29: =IFERROR(E28*E27/100,"") ->  | F29: =IFERROR(F28*F27/100,"") -> 
A30: NZD | B30: 0.06048596561 | C30: 90 | D30: Shaded Income - AUD | E30: =IFERROR(E29/E$16,0) -> 0 | F30: =IFERROR(F29/F$16,0) -> 0 | G30: =IFERROR(G29/G$16,0) -> 0 | H30: =IFERROR(H29/H$16,0) -> 0
A31: OMR | B31: 6.85 | C31: 90
A32: PGK | C32: 80 | D32: 3. FX Overtime (Complete one section only)
A33: PHP | B33: 0.08558001681 | C33: 90 | D33: Overtime Cycle | E33: Select | F33: Select | G33: Select | H33: Select
A34: QAR | C34: 90 | D34: Regular Overtime
A35: RUB | C35: 90 | D35: OR | E35: =IFERROR(VLOOKUP(E33,$A$54:$B$58,2,FALSE)*E34,0) -> 0 | F35: =IFERROR(VLOOKUP(F33,$A$54:$B$58,2,FALSE)*F34,0) -> 0 | G35: =IFERROR(VLOOKUP(G33,$A$54:$B$58,2,FALSE)*G34,0) -> 0 | H35: =IFERROR(VLOOKUP(H33,$A$54:$B$58,2,FALSE)*H34,0) -> 0
A36: SAR | B36: 0.08337254799 | C36: 90 | D36: Overtime Cycle | E36: Select | F36: Select | G36: Select | H36: Select
A37: SGD | B37: 0.05506877238 | C37: 90 | D37: Minimum OT Hours
A38: THB | C38: 90 | D38: OT Hourly
A39: USD | B39: 0.08347357925 | C39: 90 | D39: OR | E39: =IFERROR(VLOOKUP(E36,$A$54:$B$58,2,FALSE)*E37*E38,0) -> 0 | F39: =IFERROR(VLOOKUP(F36,$A$54:$B$58,2,FALSE)*F37*F38,0) -> 0 | G39: =IFERROR(VLOOKUP(G36,$A$54:$B$58,2,FALSE)*G37*G38,0) -> 0 | H39: =IFERROR(VLOOKUP(H36,$A$54:$B$58,2,FALSE)*H37*H38,0) -> 0
A40: VND | B40: 0.08459733058 | C40: 90 | D40: Prior Total Income (Annual)
A41: XPF | C41: 80 | D41: -Prior Bonus | E41: =IF(E40="","",E25*-1) ->  | F41: =IF(F40="","",F25*-1) ->  | G41: =IF(G40="","",G25*-1) -> 
A42: ZAR | B42: 0.1335127961 | C42: 80 | D42: -Base | E42: =IF(E40="","",E19*-1) ->  | F42: =IF(F40="","",F19*-1) -> 
D43: Prior OT (A) | E43: =SUM(E40:E42) -> 0 | F43: =SUM(F40:F42) -> 0 | G43: 0 | H43: 0
D44: AND
D45: Current Total Income (Annual)
D46: -Current Bonus | E46: =IF(E45="",0,E26*-1) -> 0 | F46: =IF(F45="",0,F26*-1) -> 0 | G46: 0 | H46: 0
D47: -Base | E47: =IF(E45="","",E19*-1) ->  | F47: =IF(F45="","",F19*-1) -> 
D48: Current OT (B) | E48: =SUM(E45:E47) -> 0 | F48: =SUM(F45:F47) -> 0 | G48: =SUM(G45:G47) -> 0 | H48: 0
D49: Average OT (A&B) | E49: =IF(OR(E43<0,E48<0),"ERROR",AVERAGE(E43,E48)) -> 0 | F49: =IF(OR(F43<0,F48<0),"ERROR",AVERAGE(F43,F48)) -> 0 | G49: 0 | H49: 0
D51: Annualized OT | E51: =IFERROR(E49+E39+E35,"") -> 0 | F51: =IFERROR(F49+F39+F35,"") -> 0 | G51: =IFERROR(G49+G39+G35,"") -> 0 | H51: =IFERROR(H49+H39+H35,"") -> 0
D52: Shading | E52: =E28 -> 0 | F52: =F28 -> 0 | G52: =G28 -> 0 | H52: =H28 -> 0
D53: Shaded Overtime | E53: =IFERROR(E52*E51/100,"") -> 0 | F53: =IFERROR(F52*F51/100,"") -> 0 | G53: 0 | H53: 0
A54: Select | D54: Shaded Overtime - AUD | E54: =IFERROR(E53/E$16,0) -> 0 | F54: =IFERROR(F53/F$16,0) -> 0 | G54: =IFERROR(G53/G$16,0) -> 0 | H54: =IFERROR(H53/H$16,0) -> 0
A55: Weekly | B55: 52
A56: Fortnightly | B56: 26
A57: Monthly | B57: 12 | D57: Foreign Rental Income
A58: Bi-Monthly | B58: 24 | D58: Applicant | E58: Currency | F58: 30-D Avg Rate | G58: Rent Cycle | H58: Rent Per Cycle | I58: Annual Rent | J58: Shading | K58: Shaded Rent | L58: Shaded Rent - AUD
D59: Select | E59: Select | F59: =IF(E59="Select","",IFERROR(VLOOKUP(E59,$D$6:$E$10,2,FALSE),"RATE TABLE")) ->  | G59: Select | I59: =IF(H59="","",VLOOKUP(G59,$A$54:$B$58,2,FALSE)*H59) ->  | J59: =VLOOKUP(E59,$A$7:$C$45,3,FALSE) -> 0 | K59: =IFERROR(J59*I59/100,0) -> 0 | L59: =IFERROR(K59/F59,0) -> 0
D60: Select | E60: Select | G60: Select | J60: =VLOOKUP(E60,$A$7:$C$45,3,FALSE) -> 0 | K60: =IFERROR(J60*I60/100,0) -> 0 | L60: =IFERROR(K60/F60,0) -> 0
D61: Select | E61: Select | G61: Select | J61: 0 | K61: 0 | L61: 0
D62: Select | E62: Select | G62: Select | J62: 0 | K62: 0 | L62: 0
D63: Select | E63: Select | G63: Select | J63: 0 | K63: 0 | L63: 0
D64: Select | E64: Select | G64: Select | J64: 0 | K64: 0 | L64: 0
D65: Select | E65: Select | G65: Select | J65: 0 | K65: 0 | L65: 0
D66: Select | E66: Select | G66: Select | J66: 0 | K66: 0 | L66: 0
D67: Select | E67: Select | G67: Select | J67: 0 | K67: 0 | L67: 0
D68: Select | E68: Select | G68: Select | J68: 0 | K68: 0 | L68: 0
D69: Select | E69: Select | G69: Select | J69: 0 | K69: 0 | L69: 0
D70: Select | E70: Select | G70: Select | J70: 0 | K70: 0 | L70: 0
D71: Select | E71: Select | G71: Select | J71: 0 | K71: 0 | L71: 0
D72: Select | E72: Select | G72: Select | J72: 0 | K72: 0 | L72: 0
D73: Select | E73: Select | G73: Select | J73: 0 | K73: 0 | L73: 0
D74: Select | E74: Select | G74: Select | J74: 0 | K74: 0 | L74: 0
D75: Select | E75: Select | G75: Select | J75: 0 | K75: 0 | L75: 0
D76: Select | E76: Select | G76: Select | J76: 0 | K76: 0 | L76: 0
D77: Select | E77: Select | G77: Select | J77: 0 | K77: 0 | L77: 0
D78: Select | E78: Select | G78: Select | J78: 0 | K78: 0 | L78: 0
D81: Other FX Conversions (e.g. loan repayment, rental expense etc.)
D82: Description | E82: Currency | F82: 30-D Avg Rate | G82: Amount | H82: Amount in AUD
E83: Select | F83: =IF(E83="Select","",IFERROR(VLOOKUP(E83,$D$6:$E$10,2,FALSE),"RATE TABLE")) ->  | H83: =IFERROR(G83/F83,0) -> 0
E84: Select | H84: =IFERROR(G84/F84,0) -> 0
E85: Select | H85: 0
E86: Select | H86: 0
E87: Select | H87: 0
E88: Select | H88: 0
E89: Select | H89: 0
E90: Select | H90: 0
E91: Select | H91: 0
E92: Select | H92: 0
E93: Select | H93: 0
E94: Select | H94: 0
E95: Select | H95: 0
E96: Select | H96: 0
E97: Select | H97: 0

Sheet 3_SERVICE
B3: Proposed Loan | S3: Applicant 1 | T3: Applicant 2 | U3: Applicant 3 | V3: Applicant 4 | W3: Low | X3: End | Y3: Accu | Z3: Rate | AA3: Applicant 1 | AB3: Applicant 2 | AC3: Applicant 3 | AD3: Applicant 4 | AE3: Low | AF3: End | AG3: Rate
S4: =D43 -> 0 | T4: =E43 -> 0 | U4: =F43 -> 0 | V4: =G43 -> 0 | W4: 0 | X4: 18200 | Y4: 0 | Z4: 0 | AA4: =IF(AND(S4>=$W4,S4<=$X4),1,0) -> 1 | AB4: =IF(AND(T4>=$W4,T4<=$X4),1,0) -> 1 | AC4: =IF(AND(U4>=$W4,U4<=$X4),1,0) -> 1 | AD4: =IF(AND(V4>=$W4,V4<=$X4),1,0) -> 1 | AE4: =W4 -> 0 | AF4: =X4 -> 18200 | AG4: 0
B5: Loan Amount | E5: Rate Type | F5: Select | G5: =VLOOKUP(F5,References!AG3:AI30,2,FALSE)/100 -> 0 | S5: =S4 -> 0 | T5: =T4 -> 0 | U5: =U4 -> 0 | V5: =V4 -> 0 | W5: 18200 | X5: 37000 | Y5: 0 | Z5: 0.19 | AA5: =IF(AND(S5>$W5,S5<=$X5),1,0) -> 0 | AB5: 0 | AC5: 0 | AD5: 0 | AE5: =W5 -> 18200 | AF5: 37000 | AG5: 0.19
B6: Loan Term (years) | C6: Select | E6: EXPAT? BOOL | F6: =IFERROR(FIND("EXPAT",F5),0) -> 0 | S6: =S5 -> 0 | T6: 0 | U6: 0 | V6: 0 | W6: 37000 | X6: 90000 | Y6: 3572 | Z6: 0.325 | AA6: 0 | AB6: 0 | AC6: 0 | AD6: 0 | AE6: 37000 | AF6: 90000 | AG6: 0.325
B7: Margin | S7: 0 | T7: 0 | U7: 0 | V7: 0 | W7: 90000 | X7: 180000 | Y7: 20797 | Z7: 0.37 | AA7: 0 | AB7: 0 | AC7: 0 | AD7: 0 | AE7: 90000 | AF7: 180000 | AG7: 0.37
B8: Deal LVR | S8: 0 | T8: 0 | U8: 0 | V8: 0 | W8: 180000 | X8: 999999999 | Y8: 54097 | Z8: 0.45 | AA8: 0 | AB8: 0 | AC8: 0 | AD8: 0 | AE8: 180000 | AF8: 999999999 | AG8: 0.45
B9: Actual Interest Rate | C9: =G5+C7 -> 0 | S9: =SUMPRODUCT(--(AA4:AA8=1)*Y4:Y8)+VLOOKUP(1,AA4:AH8,7,FALSE)*(S4-VLOOKUP(1,AA4:AH8,5,FALSE)) -> 0 | T9: =SUMPRODUCT(--(AB4:AB8=1)*Y4:Y8)+VLOOKUP(1,AB4:AI8,6,FALSE)*(T4-VLOOKUP(1,AB4:AI8,4,FALSE)) -> 0 | U9: =SUMPRODUCT(--(AC4:AC8=1)*Y4:Y8)+VLOOKUP(1,AC4:AJ8,5,FALSE)*(U4-VLOOKUP(1,AC4:AJ8,3,FALSE)) -> 0 | V9: =SUMPRODUCT(--(AD4:AD8=1)*Y4:Y8)+VLOOKUP(1,AD4:AK8,4,FALSE)*(V4-VLOOKUP(1,AD4:AK8,2,FALSE)) -> 0
B10: Actual Repayment | C10: =IFERROR(PMT(C9/12,C6*12,C5,0),0) -> 0
B11: Assessment Rate | C11: =References!B30 -> 0.0575
B12: Assessed Monthly Repayment | D12: =IFERROR('Calculations '!A6,0) -> 0
B14: Living Expenses
B16: Select | C16: Description | D16: Has at least one child <14? (Family allowance) | E16: HEM Monthly Living Expense | F16: Declared Living Expense | G16: Assessed Living Expense
B17: Household 1 | C17: Select | D17: Select | E17: =IFERROR(HLOOKUP(C17,'HEM Drop In Tables'!$C$1:$J$15,'HEM Drop In Tables'!P16+1,FALSE)*52/12,0) -> 0 | G17: =MAX(E17,F17) -> 0 | J17: =SUMIF($D$24:$G$24,B17,$D$48:$G$48) -> 0 | K17: =IF(AND(F17<>"",F17<E17),"WARNING - The monthly living expenses are below benchmark. Detailed explanation required","") -> 
B18: Household 2 | C18: Select | D18: Select | E18: =IFERROR(HLOOKUP(C18,'HEM Drop In Tables'!$C$1:$J$15,'HEM Drop In Tables'!P17+1,FALSE)*52/12,0) -> 0 | G18: =MAX(E18,F18) -> 0 | J18: =SUMIF($D$24:$G$24,B18,$D$48:$G$48) -> 0 | K18: =IF(AND(F18<>"",F18<E18),"WARNING - The monthly living expenses are below benchmark. Detailed explanation required","") -> 
B19: Household 3 | C19: Select | D19: Select | E19: =IFERROR(HLOOKUP(C19,'HEM Drop In Tables'!$C$1:$J$15,'HEM Drop In Tables'!P18+1,FALSE)*52/12,0) -> 0 | G19: 0 | J19: =SUMIF($D$24:$G$24,B19,$D$48:$G$48) -> 0
B20: Household 4 | C20: Select | D20: Select | E20: =IFERROR(HLOOKUP(C20,'HEM Drop In Tables'!$C$1:$J$15,'HEM Drop In Tables'!P19+1,FALSE)*52/12,0) -> 0 | G20: 0 | J20: =SUMIF($D$24:$G$24,B20,$D$48:$G$48) -> 0
B22: Monthly Living Expenses used for Assessment | D22: =SUM(G17:G20) -> 0
D23: SELECT HOUSEHOLD BELOW | E23: SELECT HOUSEHOLD BELOW | F23: SELECT HOUSEHOLD BELOW | G23: SELECT HOUSEHOLD BELOW
B24: Annual Income | D24: Select | E24: Select | F24: Select | G24: Select | J24: Taxed
D25: Applicant 1 | E25: Applicant 2 | F25: Applicant 3 | G25: Applicant 4 | H25: % Accepted
B26: Gross PAYG (Full time, part time, contract) | H26: =References!B4 -> 1 | J26: 1
B27: Gross Casual or Temp Income | H27: =References!B5 -> 1 | J27: 1
B28: Gross Overtime | H28: 0.8 | J28: 1
B29: Gross Bonuses | H29: 0.8 | J29: 1
B30: Gross Commissions | H30: 0.8 | J30: 1
B31: Employer allowances | H31: =References!B9 -> 1 | J31: 1
B32: Rental Income | H32: 0.8 | J32: 0
B33: Investment Income | H33: 0.8 | J33: 1
B34: Government Pension | H34: =References!B13 -> 1 | J34: 0
B35: Family Allowance/Childcare support/Child maintenance | H35: =References!B14 -> 1 | J35: 0
B36: Foreign Gross PAYG | D36: ='2_FX_CALCULATOR'!E22 -> 0 | E36: ='2_FX_CALCULATOR'!F22 -> 0 | F36: ='2_FX_CALCULATOR'!G22 -> 0 | G36: ='2_FX_CALCULATOR'!H22 -> 0 | H36: =H26 -> 1 | J36: 1
B37: Foreign Gross Overtime | D37: ='2_FX_CALCULATOR'!E54 -> 0 | E37: ='2_FX_CALCULATOR'!F54 -> 0 | F37: ='2_FX_CALCULATOR'!G54 -> 0 | G37: ='2_FX_CALCULATOR'!H54 -> 0 | H37: =H28 -> 0.8 | J37: 1
B38: Foreign Gross Bonuses | D38: ='2_FX_CALCULATOR'!E30 -> 0 | E38: ='2_FX_CALCULATOR'!F30 -> 0 | F38: ='2_FX_CALCULATOR'!G30 -> 0 | G38: ='2_FX_CALCULATOR'!H30 -> 0 | H38: =H37 -> 0.8 | J38: 1
B39: Foreign Rental Income | D39: =IFERROR(SUMIF('2_FX_CALCULATOR'!$D$59:$D$78,'3_SERVICE'!D25,'2_FX_CALCULATOR'!$L$59:$L$78),0) -> 0 | E39: =IFERROR(SUMIF('2_FX_CALCULATOR'!$D$59:$D$78,'3_SERVICE'!E25,'2_FX_CALCULATOR'!$L$59:$L$78),0) -> 0 | F39: =IFERROR(SUMIF('2_FX_CALCULATOR'!$D$59:$D$78,'3_SERVICE'!F25,'2_FX_CALCULATOR'!$L$59:$L$78),0) -> 0 | G39: =IFERROR(SUMIF('2_FX_CALCULATOR'!$D$59:$D$78,'3_SERVICE'!G25,'2_FX_CALCULATOR'!$L$59:$L$78),0) -> 0 | H39: =H38 -> 0.8 | J39: 0
H40: =References!B15 -> 0
B41: Other Income | H41: =References!B16 -> 0.9
B42: Gross Annual Eligible Income | D42: =SUMPRODUCT(D26:D39,$H$26:$H$39) -> 0 | E42: =SUMPRODUCT(E26:E39,$H$26:$H$39) -> 0 | F42: 0 | G42: 0
B43: Gross Annual Eligible Taxable Income | D43: =SUMPRODUCT(($J$26:$J$39=1)*(D26:D39),--$H$26:$H$39) -> 0 | E43: =SUMPRODUCT(($J$26:$J$39=1)*(E26:E39),--$H$26:$H$39) -> 0 | F43: =SUMPRODUCT(($J$26:$J$39=1)*(F26:F39),--$H$26:$H$39) -> 0 | G43: =SUMPRODUCT(($J$26:$J$39=1)*(G26:G39),--$H$26:$H$39) -> 0
B44: Income Tax | D44: =S9 -> 0 | E44: =T9 -> 0 | F44: =U9 -> 0 | G44: =V9 -> 0
B45: Medicare Levy | D45: =0.02*D43 -> 0 | E45: =0.02*E43 -> 0 | F45: 0 | G45: 0
B46: Tax Free Income | D46: =SUMPRODUCT(($J$26:$J$39=0)*(D26:D39),--$H$26:$H$39) -> 0 | E46: =SUMPRODUCT(($J$26:$J$39=0)*(E26:E39),--$H$26:$H$39) -> 0 | F46: =SUMPRODUCT(($J$26:$J$39=0)*(F26:F39),--$H$26:$H$39) -> 0 | G46: =SUMPRODUCT(($J$26:$J$39=0)*(G26:G39),--$H$26:$H$39) -> 0
B47: Net Annual Income Used For Assessment | D47: =D43-D44-D45+D46 -> 0 | E47: =E43-E44-E45+E46 -> 0 | F47: 0 | G47: =G43-G44-G45+G46 -> 0
C48: Unweighted | D48: =SUM(D26:D41) -> 0 | E48: =SUM(E26:E41) -> 0 | F48: 0 | G48: 0
B49: Total Combined Net Annual Income | D49: =SUM(D47:G47) -> 0
D50: =IF(D53>0,'Calculations '!L52*D51/12,0) -> 0 | E50: =IF(E53>0,'Calculations '!M52*E51/12,0) -> 0 | F50: =IF(F53>0,'Calculations '!N52*F51/12,0) -> 0 | G50: =IF(G53>0,'Calculations '!O52*G51/12,0) -> 0
B51: Individual Expenses | D51: =SUMPRODUCT(($J$26:$J$39=1)*(D26:D39)) -> 0 | E51: =SUMPRODUCT(($J$26:$J$39=1)*(E26:E39)) -> 0 | F51: 0 | G51: 0
D52: Applicant 1 | E52: Applicant 2 | F52: Applicant 3 | G52: Applicant 4
B53: HECS/HELP - amount owing
B54: HECS/HELP - expected repayment per month | D54: =IF(D50>D53,0,D50) -> 0 | E54: =IF(E50>E53,0,E50) -> 0 | F54: =IF(F50>F53,0,F50) -> 0 | G54: 0
B56: Total Individual Monthly Expenses | D56: =SUM(D54:G54) -> 0
B58: Ongoing Liabilities & Expenses
B60: Liability Expense Type | D60: Limit | E60: Balance | F60: Monthly Repayment | G60: Assessed Monthly Repayment
B61: Combined Mortgages | G61: =IF(VLOOKUP(F5,References!AG3:AI30,3,FALSE)="Y",MAX(F61,-PMT(VLOOKUP("HL.OWNER.OCCUPIER",References!AG3:AI30,2,FALSE)/100/12,30*12,D61,0)),MAX(F61,-PMT($C$11/12,30*12,D61,0))) -> 0
B62: Combined Credit Card | G62: =D62*References!$B$26 -> 0
B63: Combined Personal Loan | G63: =IF(VLOOKUP($F$5,References!$AG$3:$AI$30,3,FALSE)="Y",MAX(F63,-PMT((VLOOKUP("Average Personal Loan Rate",References!$AG$3:$AI$31,2,FALSE)+0%)/100/12,7*12,D63,0)),MAX(F63,-PMT((VLOOKUP("Average Personal Loan Rate",References!$AG$4:$AI$31,2,FALSE)+2.25%)/100/12,7*12,D63,0))) -> 0
B64: Combined Overdraft | G64: =D64*References!$B$26 -> 0
B65: Combined Lease | G65: =IF(VLOOKUP($F$5,References!$AG$3:$AI$30,3,FALSE)="Y",MAX(F65,-PMT((VLOOKUP("Average Personal Loan Rate",References!$AG$3:$AI$31,2,FALSE)+0%)/100/12,7*12,D65,0)),MAX(F65,-PMT((VLOOKUP("Average Personal Loan Rate",References!$AG$4:$AI$31,2,FALSE)+2.25%)/100/12,7*12,D65,0))) -> 0
B66: Combined Other Loan | G66: =F66 -> 0
B67: Combined Contractual Non Basic Expenses (E.g. Rent) | G67: =F67 -> 0
B68: Child Support Payments | G68: =F68 -> 0
B70: Total Combined Monthly Expenses | D70: =SUM(G61:G68) -> 0
B72: Capacity to Repay Test
D73: Annual equivalents
B74: Total Monthly Income | C74: =D49/12 -> 0 | D74: =C74*12 -> 0
B75: Total Existing Financial Expenses | C75: =D70+D56 -> 0 | D75: =C75*12 -> 0
B76: Assessed Monthly Repayment | C76: =D12 -> 0 | D76: =C76*12 -> 0 | E76: =SUM(D75:D76) -> 0 | F76: TOTAL FINANCIAL COMMITMENTS
B77: Monthly Living Expenses | C77: =D22 -> 0 | D77: =C77*12 -> 0 | E77: =SUM(D75:D77) -> 0 | F77: TOTAL COMMITMENTS INCL. LIVING
B78: Surplus / Deficit | C78: =C74-C75-C76-C77 -> 0 | D78: =C78*12 -> 0 | E78: =D74-E77 -> 0
B81: Result
B83: NDI Ratio | C83: =IFERROR(C86/C87,0) -> 0
B84: Pass | C84: =IF(C83>C85, "Pass", "Fail") -> Fail
B85: Min Surplus Required | C85: 1.1
B86: NDI | C86: =D74-D77 -> 0
B87: Commitment after new loan | C87: =E76 -> 0
B88: Max Borrowing Cap. | C88: =IFERROR(PV(C11/12,C6*12,-1*D88,0),0) -> 0 | D88: =(C86/C85-D75)/12 -> 0

Sheet HEM Drop In Tables (hidden)
A1: Low | B1: Select | C1: Couple | D1: Couple with 1 child | E1: Couple with 2 children | F1: Couple with 3 or more children | G1: Single person | H1: Single parent with 1 child | I1: Single parent with 2 children | J1: Single parent with 3 or more children | K1: Household 1 | L1: Household 2 | M1: Household 3 | N1: Household 4 | O1: Band | P1: Household 1 | Q1: Household 2 | R1: Household 3 | S1: Household 4
A2: 0 | B2: 21000 | C2: 0 | D2: 0 | E2: 0 | F2: 0 | G2: 284.404897 | H2: 0 | I2: 0 | J2: 0 | K2: ='3_SERVICE'!J17 -> 0 | L2: ='3_SERVICE'!J18 -> 0 | M2: ='3_SERVICE'!J19 -> 0 | N2: ='3_SERVICE'!J20 -> 0 | O2: 1 | P2: =IF(AND(K2>=$A2,K2<$B2),1,0)*$O2 -> 1 | Q2: =IF(AND(L2>=$A2,L2<$B2),1,0)*$O2 -> 1 | R2: =IF(AND(M2>=$A2,M2<$B2),1,0)*$O2 -> 1 | S2: =IF(AND(N2>=$A2,N2<$B2),1,0)*$O2 -> 1
A3: 21000 | B3: 32000 | C3: 516.7277058 | D3: 0 | E3: 0 | F3: 0 | G3: 297.5465809 | H3: 391.0189807 | I3: 473.5100826 | J3: 0 | K3: =K2 -> 0 | L3: =L2 -> 0 | M3: 0 | N3: 0 | O3: =O2+1 -> 2 | P3: 0 | Q3: 0 | R3: 0 | S3: 0
A4: 32000 | B4: 42000 | C4: 531.047102 | D4: 608.4947 | E4: 662.0265065 | F4: 0 | G4: 311.8604989 | H4: 405.4213492 | I4: 487.8550772 | J4: 482.9878585 | K4: =K3 -> 0 | L4: =L3 -> 0 | M4: =M3 -> 0 | N4: =N3 -> 0 | O4: =O3+1 -> 3 | P4: 0 | Q4: 0 | R4: 0 | S4: 0
A5: 42000 | B5: 53000 | C5: 553.4287922 | D5: 630.8629465 | E5: 684.2509353 | F5: 744.1952646 | G5: 334.2336511 | H5: 427.9327821 | I5: 510.2768519 | J5: 505.2993084 | K5: 0 | L5: 0 | M5: 0 | N5: 0 | O5: 4 | P5: 0 | Q5: 0 | R5: 0 | S5: 0
A6: 53000 | B6: 63000 | C6: 590.1666683 | D6: 667.5787558 | E6: 720.7306785 | F6: 780.9886246 | G6: 370.9575204 | H6: 464.883629 | I6: 547.0805238 | J6: 541.9218289 | K6: 0 | L6: 0 | M6: 0 | N6: 0 | O6: 5 | P6: 0 | Q6: 0 | R6: 0 | S6: 0
A7: 63000 | B7: 85000 | C7: 642.4584697 | D7: 719.8391477 | E7: 772.655069 | F7: 833.3594288 | G7: 423.2294036 | H7: 517.4786056 | I7: 599.466015 | J7: 594.0494359 | K7: 0 | L7: 0 | M7: 0 | N7: 0 | O7: 6 | P7: 0 | Q7: 0 | R7: 0 | S7: 0
A8: 85000 | B8: 106000 | C8: 710.3961332 | D8: 787.7360039 | E8: 840.115379 | F8: 901.3997149 | G8: 491.1411742 | H8: 585.8101155 | I8: 667.5253704 | J8: 661.7737868 | K8: 0 | L8: 0 | M8: 0 | N8: 0 | O8: 7 | P8: 0 | Q8: 0 | R8: 0 | S8: 0
A9: 106000 | B9: 127000 | C9: 764.4189181 | D9: 841.7263773 | E9: 893.7585814 | F9: 955.5040886 | G9: 545.1433623 | H9: 640.1460725 | I9: 721.6448889 | J9: 715.6269328 | K9: 0 | L9: 0 | M9: 0 | N9: 0 | O9: 8 | P9: 0 | Q9: 0 | R9: 0 | S9: 0
A10: 127000 | B10: 148000 | C10: 854.8104809 | D10: 932.0635707 | E10: 983.5150219 | F10: 1046.032167 | G10: 635.500462 | H10: 731.0616006 | I10: 812.1983011 | J10: 805.7346692 | K10: 0 | L10: 0 | M10: 0 | N10: 0 | O10: 9 | P10: 0 | Q10: 0 | R10: 0 | S10: 0
A11: 148000 | B11: 169000 | C11: 893.4399108 | D11: 970.669835 | E11: 1021.873047 | F11: 1084.719881 | G11: 674.1151451 | H11: 769.9149855 | I11: 850.896952 | J11: 844.242804 | K11: 0 | L11: 0 | M11: 0 | N11: 0 | O11: 10 | P11: 0 | Q11: 0 | R11: 0 | S11: 0
A12: 169000 | B12: 211000 | C12: 930.4397258 | D12: 1007.647426 | E12: 1058.612832 | F12: 1121.775594 | G12: 711.1008347 | H12: 807.1292708 | I12: 887.9629944 | J12: 881.1264035 | K12: 0 | L12: 0 | M12: 0 | N12: 0 | O12: 11 | P12: 0 | Q12: 0 | R12: 0 | S12: 0
A13: 211000 | B13: 264000 | C13: 1033.452277 | D13: 1110.598008 | E13: 1160.901563 | F13: 1224.943703 | G13: 814.0740922 | H13: 910.7389328 | I13: 991.1599986 | J13: 983.8154802 | K13: 0 | L13: 0 | M13: 0 | N13: 0 | O13: 12 | P13: 0 | Q13: 0 | R13: 0 | S13: 0
A14: 264000 | B14: 317000 | C14: 1165.128623 | D14: 1242.195336 | E14: 1291.65278 | F14: 1356.818915 | G14: 945.7003282 | H14: 1043.178743 | I14: 1123.072246 | J14: 1115.078441 | K14: 0 | L14: 0 | M14: 0 | N14: 0 | O14: 13 | P14: 0 | Q14: 0 | R14: 0 | S14: 0
A15: 317000 | B15: 99999999999 | C15: 1199.329004 | D15: 1276.375175 | E15: 1325.612784 | F15: 1391.070948 | G15: 979.8875766 | H15: 1077.577291 | I15: 1157.333803 | J15: 1149.17136 | K15: 0 | L15: 0 | M15: 0 | N15: 0 | O15: 14 | P15: 0 | Q15: 0 | R15: 0 | S15: 0
O16: Final Band | P16: =SUM(P2:P15) -> 1 | Q16: =SUM(Q2:Q15) -> 1 | R16: 1 | S16: 1
P17: =Q16 -> 1
P18: =R16 -> 1
P19: =S16 -> 1

Sheet Calculations (hidden)
A1: Assessed Monthly Repayment | J1: Actual Repayment
A2: Loan Amount | B2: ='3_SERVICE'!C5 -> 0 | J2: Loan Amount | K2: ='3_SERVICE'!C5 -> 0
A3: Loan Term (years) | B3: ='3_SERVICE'!C6 -> Select | C3: =B3*12 ->  | J3: Loan Term (years) | K3: ='3_SERVICE'!C6 -> Select | L3: =K3*12 -> 
A4: Assessment Rate | B4: ='3_SERVICE'!C11 -> 0.0575 | C4: =B4/12 -> 0.004791666667 | J4: Actual Rate | K4: ='3_SERVICE'!C9 -> 0 | L4: =K4/12 -> 0
A5: Repayment | J5: Repayment
A6: =-PMT(C4,C3,B2,0) ->  | J6: =-PMT(L4,L3,K2) -> 
A8: MBC
A9: Loan Term (years) | B9: ='3_SERVICE'!C6 -> Select | C9: =B9*12 -> 
A10: Assessment Rate | B10: ='3_SERVICE'!C11 -> 0.0575 | C10: =B10/12 -> 0.004791666667
A11: Surplus / Deficit | B11: ='3_SERVICE'!C78 -> 0 | C11: ='3_SERVICE'!C74-'3_SERVICE'!C75-'3_SERVICE'!C77-1 -> -1
A12: Maximum Borrowing Capacity
A13: =-PV(C10,C9,C11) -> 
A16: Income
A19: Annual Income
C20: Applicant 1 | D20: Applicant 2 | E20: Applicant 3 | F20: Applicant 4 | G20: Taxable | J20: Applicant 1 Taxable Income | K20: Applicant 2 Taxable Income | L20: Applicant 3 Taxable Income | M20: Applicant 4 Taxable Income | P20: Applicant 1 Taxable Income | Q20: Applicant 2 Taxable Income | R20: Applicant 3 Taxable Income | S20: Applicant 4 Taxable Income
A21: =References!A4 -> Gross PAYG (Full time, part time, contract) | C21: ='3_SERVICE'!D26*References!B4 -> 0 | D21: ='3_SERVICE'!E26*References!B4 -> 0 | E21: ='3_SERVICE'!F26*References!B4 -> 0 | F21: ='3_SERVICE'!G26*References!B4 -> 0 | G21: =References!C4 -> Yes | J21: =IF(G21="YES", C21, "0") -> 0 | K21: =IF(G21="YES", D21, "0") -> 0 | L21: =IF(G21="YES", E21, "0") -> 0 | M21: =IF(G21="YES", F21, "0") -> 0 | P21: =IF(G21="No", C21, "0") -> 0 | Q21: =IF(G21="No", D21, "0") -> 0 | R21: =IF(G21="No", E21, "0") -> 0 | S21: =IF(G21="No", F21, "0") -> 0
A22: =References!A5 -> Gross Casual or Temp Income | C22: ='3_SERVICE'!D27*References!B5 -> 0 | D22: ='3_SERVICE'!E27*References!B5 -> 0 | E22: ='3_SERVICE'!F27*References!B5 -> 0 | F22: ='3_SERVICE'!G27*References!B5 -> 0 | G22: =References!C5 -> Yes | J22: 0 | K22: =IF(G22="YES", D22, "0") -> 0 | L22: 0 | M22: 0 | P22: 0 | Q22: 0 | R22: 0 | S22: 0
A23: =References!A6 -> Gross Overtime | C23: ='3_SERVICE'!D28*References!B6 -> 0 | D23: ='3_SERVICE'!E28*References!B6 -> 0 | E23: ='3_SERVICE'!F28*References!B6 -> 0 | F23: ='3_SERVICE'!G28*References!B6 -> 0 | G23: =References!C6 -> Yes | J23: 0 | K23: 0 | L23: 0 | M23: 0 | P23: 0 | Q23: 0 | R23: 0 | S23: 0
A24: =References!A7 -> Gross Bonuses | C24: ='3_SERVICE'!D29*References!B7 -> 0 | D24: ='3_SERVICE'!E29*References!B7 -> 0 | E24: ='3_SERVICE'!F29*References!B7 -> 0 | F24: ='3_SERVICE'!G29*References!B7 -> 0 | G24: =References!C7 -> Yes | J24: 0 | K24: 0 | L24: 0 | M24: 0 | P24: 0 | Q24: 0 | R24: 0 | S24: 0
A25: =References!A8 -> Gross Commissions | C25: ='3_SERVICE'!D30*References!B8 -> 0 | D25: ='3_SERVICE'!E30*References!B8 -> 0 | E25: ='3_SERVICE'!F30*References!B8 -> 0 | F25: ='3_SERVICE'!G30*References!B8 -> 0 | G25: =References!C8 -> Yes | J25: 0 | K25: 0 | L25: 0 | M25: 0 | P25: 0 | Q25: 0 | R25: 0 | S25: 0
A26: =References!A9 -> Employer allowances | C26: ='3_SERVICE'!D31*References!B9 -> 0 | D26: ='3_SERVICE'!E31*References!B9 -> 0 | E26: ='3_SERVICE'!F31*References!B9 -> 0 | F26: ='3_SERVICE'!G31*References!B9 -> 0 | G26: =References!C9 -> Yes | J26: 0 | K26: 0 | L26: 0 | M26: 0 | P26: 0 | Q26: 0 | R26: 0 | S26: 0
A27: =References!A10 -> Rental Income | C27: ='3_SERVICE'!D32*References!B10 -> 0 | D27: ='3_SERVICE'!E32*References!B10 -> 0 | E27: ='3_SERVICE'!F32*References!B10 -> 0 | F27: ='3_SERVICE'!G32*References!B10 -> 0 | G27: =References!C10 -> No | J27: 0 | K27: 0 | L27: 0 | M27: 0 | P27: 0 | Q27: 0 | R27: 0 | S27: 0
A28: =References!A11 ->  | C28: ='3_SERVICE'!#REF!*References!B11 ->  | D28: ='3_SERVICE'!#REF!*References!B11 ->  | E28: ='3_SERVICE'!#REF!*References!B11 ->  | F28: ='3_SERVICE'!#REF!*References!B11 ->  | G28: =References!C11 -> No | J28: 0 | K28: 0 | L28: 0 | M28: 0
A29: =References!A12 -> Investment Income | C29: ='3_SERVICE'!D33*References!B12 -> 0 | D29: ='3_SERVICE'!E33*References!B12 -> 0 | E29: ='3_SERVICE'!F33*References!B12 -> 0 | F29: ='3_SERVICE'!G33*References!B12 -> 0 | G29: =References!C12 -> Yes | J29: =IF(G29="YES", C29, "0") -> 0 | K29: 0 | L29: 0 | M29: 0 | P29: =IF(G29="No", C29, "0") -> 0 | Q29: 0 | R29: 0 | S29: 0
A30: =References!A13 -> Government Pension | C30: ='3_SERVICE'!D34*References!B13 -> 0 | D30: ='3_SERVICE'!E34*References!B13 -> 0 | E30: ='3_SERVICE'!F34*References!B13 -> 0 | F30: ='3_SERVICE'!G34*References!B13 -> 0 | G30: =References!C13 -> No | J30: =IF(G30="YES", C30, "0") -> 0 | K30: =IF(G30="YES", D30, "0") -> 0 | L30: =IF(G30="YES", E30, "0") -> 0 | M30: =IF(G30="YES", F30, "0") -> 0 | P30: =IF(G30="No", C30, "0") -> 0 | Q30: =IF(G30="No", D30, "0") -> 0 | R30: =IF(G30="No", E30, "0") -> 0 | S30: =IF(G30="No", F30, "0") -> 0
A31: =References!A14 -> Family Allowance/Childcare support/Child maintenance | C31: ='3_SERVICE'!D35*References!B14 -> 0 | D31: ='3_SERVICE'!E35*References!B14 -> 0 | E31: ='3_SERVICE'!F35*References!B14 -> 0 | F31: ='3_SERVICE'!G35*References!B14 -> 0 | G31: =References!C14 -> No | J31: =IF(G31="YES", C31, "0") -> 0 | K31: 0 | L31: 0 | M31: 0 | P31: 0 | Q31: 0 | R31: 0 | S31: 0
A32: =References!A15 -> 0 | C32: ='3_SERVICE'!D40*References!B15 -> 0 | D32: ='3_SERVICE'!E40*References!B15 -> 0 | E32: ='3_SERVICE'!F40*References!B15 -> 0 | F32: ='3_SERVICE'!G40*References!B15 -> 0 | G32: =References!C15 -> Yes | J32: 0 | K32: 0 | L32: 0 | M32: 0 | P32: 0 | Q32: 0 | R32: 0 | S32: 0
A33: =References!A16 -> Other Income | C33: ='3_SERVICE'!D41*References!B16 -> 0 | D33: ='3_SERVICE'!E41*References!B16 -> 0 | E33: ='3_SERVICE'!F41*References!B16 -> 0 | F33: ='3_SERVICE'!G41*References!B16 -> 0 | G33: =References!C16 -> Yes | J33: 0 | K33: 0 | L33: 0 | M33: 0 | P33: 0 | Q33: 0 | R33: 0 | S33: 0
I34: Taxable | J34: =SUM(J20:J33) -> 0 | K34: =SUM(K21:K33) -> 0 | L34: =SUM(L21:L33) -> 0 | M34: =SUM(M21:M33) -> 0 | O34: Non Taxable | P34: =SUM(P21:P33) ->  | Q34: =SUM(Q21:Q33) ->  | R34: =SUM(R21:R33) ->  | S34: =SUM(S21:S33) -> 
A37: Calculating Tax Payable
J38: Income From | K38: Income To | L38: Tax
A39: Applicant | B39: Gross | C39: Tax | D39: Medicare | I39: 1 | J39: 0 | K39: 18200 | L39: Nil
A40: Applicant 1 | B40: ='3_SERVICE'!D43 -> 0 | C40: =A62 -> 0 | D40: =E125 -> 0 | I40: 2 | J40: 18201 | K40: 37000 | L40: 19 cents for each $1 over $18,200 - 445
A41: Applicant 2 | B41: ='3_SERVICE'!E43 -> 0 | C41: =A81 -> 0 | D41: =E126 -> 0 | I41: 3 | J41: 37001 | K41: 87000 | L41: 3,572 plus 32.5 c for each dollar over 37,000 - ($445 less 1.5 excess over $37,000)
A42: Applicant 3 | B42: ='3_SERVICE'!F43 -> 0 | C42: =A100 -> 0 | D42: =E127 -> 0 | I42: 4 | J42: 87001 | K42: 180000 | L42: $13,213 plus 32.5c for each $1 over $66,666
A43: Applicant 4 | B43: ='3_SERVICE'!G43 -> 0 | C43: =A119 ->  | D43: =E128 -> 0 | I43: 5 | J43: 18001 | K43: plus | L43: $17,547 plus 37c for each $1 over $80,000
I44: 6 | L44: $54,547 plus 45c for each $1 over $180,000
A46: Applicant 1 Calcs | I46: HECS/HELP
E47: Calc Result | I47: 2016-2017 Repayment income
A48: =IF(AND(B40>=J39,B40<=K39),"1","0") -> 1 | B48: Tier 1 | C48: 0 | E48: 0
A49: =IF(AND(B40>=J40,B40<=K40),"2","0") -> 0 | B49: Tier 2 | C49: =B40-K39 -> -18200 | E49: =C49*19%-445 -> -3903 | G49: Result | H49: =A48+A49+A50+A51+A52+A53 -> 7 | I49: Repayment % rate | L49: Applicant 1 Income | M49: Applicant 2 income | N49: Applicant 3 income | O49: Applicant 4 income
A50: =IF(AND(B40>=J41,B40<=K41),"3","0") -> 0 | B50: Tier 3 | C50: =B40-K40 -> -37000 | D50: =445-(B40-37000)*1.5% -> 1000 | E50: =C50*32.5%+3572-D50 -> -9453 | L50: ='3_SERVICE'!D43 -> 0 | M50: ='3_SERVICE'!E43 -> 0 | N50: ='3_SERVICE'!F43 -> 0 | O50: ='3_SERVICE'!G43 -> 0
A51: =IF(AND(B40>=J42,B40<=K42),"4","0") -> 0 | B51: Tier 4 | C51: =B40-K41 -> -87000 | E51: =C51*32.5%+13213 -> -15062 | H51: 1 | I51: 0 | J51: 51957 | K51: 0 | L51: =MATCH(L50,$I$51:$I$61,1) -> 1 | M51: =MATCH(M50,$I$51:$I$61,1) -> 1 | N51: =MATCH(N50,$I$51:$I$61,1) -> 1 | O51: 1
A52: =IF(AND(B40>=J43, B40<=K43),"5","0") -> 0 | B52: Tier 5 | C52: =B40-K42 -> -180000 | E52: =C52*37%+17547 -> -49053 | H52: 2 | I52: =J51 -> 51957 | J52: 57729 | K52: 0.02 | L52: =VLOOKUP(L51,$H$51:$K$61,4,FALSE) -> 0 | M52: =VLOOKUP(M51,$H$51:$K$61,4,FALSE) -> 0 | N52: 0 | O52: 0
A53: =IF(B40>=J44,6,0) -> 6 | B53: Tier 6 | C53: =B40-K43 ->  | E53: =C53*45%+54547 ->  | H53: 3 | I53: =J52 -> 57729 | J53: 64306 | K53: 0.04
H54: 4 | I54: 64306 | J54: 70881 | K54: 0.045
A55: Taxable | H55: 5 | I55: 70881 | J55: 74607 | K55: 0.05
A56: =IF(H49=1,E48,0) -> 0 | H56: 6 | I56: 74607 | J56: 80197 | K56: 0.055
A57: =IF(H49=2,E49,0) -> 0 | H57: 7 | I57: 80197 | J57: 86855 | K57: 0.06
A58: =IF(H49=3,E50,0) -> 0 | H58: 8 | I58: 86855 | J58: 91425 | K58: 0.065
A59: =IF(H49=4,E51,0) -> 0 | H59: 9 | I59: 91425 | J59: 100613 | K59: 0.07
A60: =IF(H49=5,E52,0) -> 0 | H60: 10 | I60: 100613 | J60: 107213 | K60: 0.075
A61: =IF(H49=6,E53,0) -> 0 | H61: 11 | I61: 107213 | J61: 9999999999 | K61: 0.08
A62: =SUM(A56:A61) -> 0
A65: Applicant 2 Calcs
E66: Calc Result
A67: =IF(AND(B41>=J39,B41<=K39),"1","0") -> 1 | B67: Tier 1 | C67: 0 | E67: 0
A68: =IF(AND(B41>=J40,B41<=K40),"2","0") -> 0 | B68: Tier 2 | C68: =B41-K39 -> -18200 | E68: =C68*19%-445 -> -3903 | G68: Result | H68: =A67+A68+A69+A70+A71+A72 -> 7
A69: =IF(AND(B41>=J41,B41<=K41),"3","0") -> 0 | B69: Tier 3 | C69: =B41-K40 -> -37000 | D69: =445-(B41-37000)*1.5% -> 1000 | E69: =C69*32.5%+3572-D69 -> -9453
A70: =IF(AND(B41>=J42,B41<=K42),"4","0") -> 0 | B70: Tier 4 | C70: =B41-K41 -> -87000 | E70: =C70*32.5%+13213 -> -15062
A71: =IF(AND(B41>=J43, B41<=K43),"5","0") -> 0 | B71: Tier 5 | C71: =B41-K42 -> -180000 | E71: =C71*37%+17547 -> -49053
A72: =IF(B41>=J44,6,0) -> 6 | B72: Tier 6 | C72: =B41-K43 ->  | E72: =C72*45%+54547 -> 
A74: Taxable
A75: =IF(H68=1,E67,0) -> 0
A76: =IF(H68=2,E68,0) -> 0
A77: =IF(H68=3,E69,0) -> 0
A78: =IF(H68=4,E70,0) -> 0
A79: =IF(H68=5,E71,0) -> 0
A80: =IF(H68=6,E72,0) -> 0
A81: =SUM(A75:A80) -> 0
A84: Applicant 3 Calcs
E85: Calc Result
A86: =IF(AND(B42>=J39,B42<=K39),"1","0") -> 1 | B86: Tier 1 | C86: 0 | E86: 0 | G86: Result | H86: =A86+A87+A88+A89+A90+A91 -> 7
A87: =IF(AND(B42>=J40,B42<=K40),"2","0") -> 0 | B87: Tier 2 | C87: =B42-K39 -> -18200 | E87: =C87*19%-445 -> -3903
A88: =IF(AND(B42>=J41,B42<=K41),"3","0") -> 0 | B88: Tier 3 | C88: =B42-K40 -> -37000 | D88: =445-(B42-37000)*1.5% -> 1000 | E88: =C88*32.5%+3572-D88 -> -9453
A89: =IF(AND(B42>=J42,B42<=K42),"4","0") -> 0 | B89: Tier 4 | C89: =B42-K41 -> -87000 | E89: =C89*32.5%+13213 -> -15062
A90: =IF(AND(B42>=J43,B42<=K43),"5","0") -> 0 | B90: Tier 5 | C90: =B42-K42 -> -180000 | E90: =C90*37%+17547 -> -49053
A91: =IF(B42>=J44,6,0) -> 6 | B91: Tier 6 | C91: =B42-K43 ->  | E91: =C91*45%+54547 -> 
A93: Taxable
A94: =IF(H86=1,0,0) -> 0
A95: =IF(H86=2,E87,0) -> 0
A96: =IF(H86=3,E88,0) -> 0
A97: =IF(H86=4,E89,0) -> 0
A98: =IF(H86=5,E90,0) -> 0
A99: =IF(H86=6,E91,0) -> 0
A100: =SUM(A94:A99) -> 0
A103: Applicant 4 Calcs
E104: Calc Result
A105: =IF(AND(B43>=J39,B43<=K39),"1","0") -> 1 | B105: Tier 1 | C105: 0 | E105: 0 | G105: Result | H105: =A105+A106+A107+A108+A109+A110 -> 6
A106: =IF(AND(B43>=J40,B43<=K40),"2","0") -> 0 | B106: Tier 2 | C106: =B43-K39 -> -18200 | E106: =C106*19%-445 -> -3903
A107: =IF(AND(B43>=J41,B43<=K41),"3","0") -> 0 | B107: Tier 3 | C107: =B43-K40 -> -37000 | D107: =445-(B43-37000)*1.5% -> 1000 | E107: =C107*32.5%+3572-D107 -> -9453
A108: =IF(AND(B43>=J42,B43<=K42),"4","0") -> 0 | B108: Tier 4 | C108: =B43-K41 -> -87000 | E108: =C108*32.5%+13213 -> -15062
A109: =IF(AND(B43>=J43,B43<=K43),"5","0") -> 0 | B109: Tier 5 | C109: =B43-K42 -> -180000 | E109: =C109*37%+17547 -> -49053
A110: =IF(B43>=J44,"5","0") -> 5 | B110: Tier 6 | C110: =B43-K43 ->  | E110: =C110*45%+54547 -> 
A112: Taxable
A113: =IF(H105=1,0,0) -> 0
A114: =IF(H105=2,E106,0) -> 0
A115: =IF(H105=3,E107,0) -> 0
A116: =IF(H105=4,E108,0) -> 0 | J116: Income From | K116: Income To | L116: Tax
A117: =IF(H105=5,E109,0) -> 0 | J117: 0 | K117: 26120 | L117: Nil
A118: =IF(H105=6,E110,0) ->  | J118: 26121 | K118: plus | L118: 2% of total gross income
A119: =SUM(A113:A118) -> 
A122: Calculating Medicare Levy
A124: Applicant | B124: Gross | C124: Medicare @2% | E124: Medicare
A125: Applicant 1 | B125: ='3_SERVICE'!D43 -> 0 | C125: =B125*2% -> 0 | E125: =IF(AND(B125>=J117,B125<=K117),0,C125) -> 0
A126: Applicant 2 | B126: ='3_SERVICE'!E43 -> 0 | C126: =B126*2% -> 0 | E126: =IF(AND(B126>=J117,B126<=K117),0,C126) -> 0
A127: Applicant 3 | B127: ='3_SERVICE'!F43 -> 0 | C127: =B127*2% -> 0 | E127: =IF(AND(B127>=J117,B127<=K117),0,C127) -> 0
A128: Applicant 4 | B128: ='3_SERVICE'!G43 -> 0 | C128: =B128*2% -> 0 | E128: =IF(AND(B128>=J117,B128<=K117),0,C128) -> 0
A133: Living Expneses
B136: Single
C138: NSW | D138: VIC | E138: TAS | F138: NT | G138: QLD | H138: WA | I138: SA | J138: ACT
B139: 0 | C139: 1000 | D139: 1011 | E139: 1022 | F139: 1033 | G139: 1044 | H139: 1055 | I139: 1066 | J139: 1077
B140: 1 | C140: 1001 | D140: 1012 | E140: 1023 | F140: 1034 | G140: 1045 | H140: 1056 | I140: 1067 | J140: 1078
B141: 2 | C141: 1002 | D141: 1013 | E141: 1024 | F141: 1035 | G141: 1046 | H141: 1057 | I141: 1068 | J141: 1079
B142: 3 | C142: 1003 | D142: 1014 | E142: 1025 | F142: 1036 | G142: 1047 | H142: 1058 | I142: 1069 | J142: 1080
B143: 4 | C143: 1004 | D143: 1015 | E143: 1026 | F143: 1037 | G143: 1048 | H143: 1059 | I143: 1070 | J143: 1081
B144: 5 | C144: 1005 | D144: 1016 | E144: 1027 | F144: 1038 | G144: 1049 | H144: 1060 | I144: 1071 | J144: 1082
B145: 6 | C145: 1006 | D145: 1017 | E145: 1028 | F145: 1039 | G145: 1050 | H145: 1061 | I145: 1072 | J145: 1083
B146: 7 | C146: 1007 | D146: 1018 | E146: 1029 | F146: 1040 | G146: 1051 | H146: 1062 | I146: 1073 | J146: 1084
B147: 8 | C147: 1008 | D147: 1019 | E147: 1030 | F147: 1041 | G147: 1052 | H147: 1063 | I147: 1074 | J147: 1085
B148: 9 | C148: 1009 | D148: 1020 | E148: 1031 | F148: 1042 | G148: 1053 | H148: 1064 | I148: 1075 | J148: 1086
B149: 10+ | C149: 1010 | D149: 1021 | E149: 1032 | F149: 1043 | G149: 1054 | H149: 1065 | I149: 1076 | J149: 1087
B151: Couple
C153: NSW | D153: VIC | E153: TAS | F153: NT | G153: QLD | H153: WA | I153: SA | J153: ACT
B154: 0 | C154: 2000 | D154: 2011 | E154: 2022 | F154: 2033 | G154: 2044 | H154: 2055 | I154: 2066 | J154: 2077
B155: 1 | C155: 2001 | D155: 2012 | E155: 2023 | F155: 2034 | G155: 2045 | H155: 2056 | I155: 2067 | J155: 2078
B156: 2 | C156: 2002 | D156: 2013 | E156: 2024 | F156: 2035 | G156: 2046 | H156: 2057 | I156: 2068 | J156: 2079
B157: 3 | C157: 2003 | D157: 2014 | E157: 2025 | F157: 2036 | G157: 2047 | H157: 2058 | I157: 2069 | J157: 2080
B158: 4 | C158: 2004 | D158: 2015 | E158: 2026 | F158: 2037 | G158: 2048 | H158: 2059 | I158: 2070 | J158: 2081
B159: 5 | C159: 2005 | D159: 2016 | E159: 2027 | F159: 2038 | G159: 2049 | H159: 2060 | I159: 2071 | J159: 2082
B160: 6 | C160: 2006 | D160: 2017 | E160: 2028 | F160: 2039 | G160: 2050 | H160: 2061 | I160: 2072 | J160: 2083
B161: 7 | C161: 2007 | D161: 2018 | E161: 2029 | F161: 2040 | G161: 2051 | H161: 2062 | I161: 2073 | J161: 2084
B162: 8 | C162: 2008 | D162: 2019 | E162: 2030 | F162: 2041 | G162: 2052 | H162: 2063 | I162: 2074 | J162: 2085
B163: 9 | C163: 2009 | D163: 2020 | E163: 2031 | F163: 2042 | G163: 2053 | H163: 2064 | I163: 2075 | J163: 2086
B164: 10+ | C164: 2010 | D164: 2021 | E164: 2032 | F164: 2043 | G164: 2054 | H164: 2065 | I164: 2076 | J164: 2087
J168: Applicant 1 | K168: Applicant 2 | L168: Applicant 3 | M168: Applicant 4
D169: Marital Status | E169: Spouse | F169: Dep | G169: State | H169: Couple | I169: NSW,0 | J169: =IF(AND(F170=0, G170="NSW"), C154, 0) -> 0 | K169: =IF(AND(F171=0, G171="NSW"), C154, 0) -> 0 | L169: =IF(AND(F172=0, G172="NSW"), C154, 0) -> 0 | M169: =IF(AND(F173=0, G173="NSW"), C154, 0) -> 0
C170: Applicant 1 | D170: ='3_SERVICE'!C17 -> Select | E170: ='3_SERVICE'!#REF! ->  | F170: ='3_SERVICE'!E17 -> 0 | G170: ='3_SERVICE'!F17 -> 0 | H170: Couple | I170: NSW,1 | J170: =IF(AND(F170=1, G170="NSW"), C155, 0) -> 0 | K170: =IF(AND(F171=1, G171="NSW"), C155, 0) -> 0 | L170: =IF(AND(F172=1, G172="NSW"), C155, 0) -> 0 | M170: =IF(AND(F173=1, G173="NSW"), C155, 0) -> 0
C171: Applicant 2 | D171: ='3_SERVICE'!C18 -> Select | E171: ='3_SERVICE'!#REF! ->  | F171: ='3_SERVICE'!E18 -> 0 | G171: ='3_SERVICE'!F18 -> 0 | H171: Couple | I171: NSW,2 | J171: =IF(AND(F170=2, G170="NSW"), C156, 0) -> 0 | K171: =IF(AND(F171=2, G171="NSW"), C156, 0) -> 0 | L171: =IF(AND(F172=2, G172="NSW"), C156, 0) -> 0 | M171: =IF(AND(F173=2, G173="NSW"), C156, 0) -> 0
C172: Applicant 3 | D172: ='3_SERVICE'!C19 -> Select | E172: ='3_SERVICE'!#REF! ->  | F172: ='3_SERVICE'!E19 -> 0 | G172: ='3_SERVICE'!F19 -> 0 | H172: Couple | I172: NSW,3 | J172: =IF(AND(F170=3, G170="NSW"), C157, 0) -> 0 | K172: =IF(AND(F171=3, G171="NSW"), C157, 0) -> 0 | L172: =IF(AND(F172=3, G172="NSW"), C157, 0) -> 0 | M172: =IF(AND(F173=3, G173="NSW"), C157, 0) -> 0
C173: Applicant 4 | D173: ='3_SERVICE'!C20 -> Select | E173: ='3_SERVICE'!#REF! ->  | F173: ='3_SERVICE'!E20 -> 0 | G173: ='3_SERVICE'!F20 -> 0 | H173: Couple | I173: NSW,4 | J173: =IF(AND(F170=4, G170="NSW"), C158, 0) -> 0 | K173: =IF(AND(F171=4, G171="NSW"), C158, 0) -> 0 | L173: =IF(AND(F172=4, G172="NSW"), C158, 0) -> 0 | M173: =IF(AND(F173=4, G173="NSW"), C158, 0) -> 0
H174: Couple | I174: NSW,5 | J174: =IF(AND(F170=5, G170="NSW"), C159, 0) -> 0 | K174: =IF(AND(F171=5, G171="NSW"), C159, 0) -> 0 | L174: =IF(AND(F172=5, G172="NSW"), C159, 0) -> 0 | M174: =IF(AND(F173=5, G173="NSW"), C159, 0) -> 0
H175: Couple | I175: NSW,6 | J175: =IF(AND(F170=6, G170="NSW"), C160, 0) -> 0 | K175: =IF(AND(F171=6, G171="NSW"), C160, 0) -> 0 | L175: =IF(AND(F172=6, G172="NSW"), C160, 0) -> 0 | M175: =IF(AND(F173=6, G173="NSW"), C160, 0) -> 0
C176: Living Expenses | D176: App 1 | E176: =A199 -> 0 | H176: Couple | I176: NSW,7 | J176: =IF(AND(F170=7, G170="NSW"), C161, 0) -> 0 | K176: =IF(AND(F171=7, G171="NSW"), C161, 0) -> 0 | L176: =IF(AND(F172=7, G172="NSW"), C161, 0) -> 0 | M176: =IF(AND(F173=7, G173="NSW"), C161, 0) -> 0
D177: App 2 | E177: =B199 ->  | H177: Couple | I177: NSW,8 | J177: =IF(AND(F170=8, G170="NSW"), C162, 0) -> 0 | K177: =IF(AND(F171=8, G171="NSW"), C162, 0) -> 0 | L177: =IF(AND(F172=8, G172="NSW"), C162, 0) -> 0 | M177: =IF(AND(F173=8, G173="NSW"), C162, 0) -> 0
D178: App 3 | E178: =C199 ->  | H178: Couple | I178: NSW,9 | J178: =IF(AND(F170=9, G170="NSW"), C163, 0) -> 0 | K178: =IF(AND(F171=9, G171="NSW"), C163, 0) -> 0 | L178: =IF(AND(F172=9, G172="NSW"), C163, 0) -> 0 | M178: =IF(AND(F173=9, G173="NSW"), C163, 0) -> 0
D179: App 4 | E179: =D199 ->  | H179: Couple | I179: NSW,10 | J179: =IF(AND(F170=10, G170="NSW"), C164, 0) -> 0 | K179: =IF(AND(F171=10, G171="NSW"), C164, 0) -> 0 | L179: =IF(AND(F172=10, G172="NSW"), C164, 0) -> 0 | M179: =IF(AND(F173=10, G173="NSW"), C164, 0) -> 0
C180: Total | E180: =SUM(E176:E179) ->  | H180: Couple | I180: VIC,0 | J180: =IF(AND(F170=0, G170="VIC"), D154, 0) -> 0 | K180: =IF(AND(F171=0, G171="VIC"), D154, 0) -> 0 | L180: =IF(AND(F172=0, G172="VIC"), D154, 0) -> 0 | M180: =IF(AND(F173=0, G173="VIC"), D154, 0) -> 0
C181: Customer Dec | E181: ='3_SERVICE'!#REF! ->  | H181: Couple | I181: VIC,1 | J181: =IF(AND(F170=1, G170="VIC"), D155, 0) -> 0 | K181: =IF(AND(F171=1, G171="VIC"), D155, 0) -> 0 | L181: =IF(AND(F172=1, G172="VIC"), D155, 0) -> 0 | M181: =IF(AND(F173=1, G173="VIC"), D155, 0) -> 0
H182: Couple | I182: VIC,2 | J182: =IF(AND(F170=2, G170="VIC"), D156, 0) -> 0 | K182: =IF(AND(F171=2, G171="VIC"), D156, 0) -> 0 | L182: =IF(AND(F172=2, G172="VIC"), D156, 0) -> 0 | M182: =IF(AND(F173=2, G173="VIC"), D156, 0) -> 0
A183: Applicant 1 | B183: Applicant 2 | C183: Applicant 3 | D183: Applicant 4 | H183: Couple | I183: VIC,3 | J183: =IF(AND(F170=3, G170="VIC"), D157, 0) -> 0 | K183: =IF(AND(F171=3, G171="VIC"), D157, 0) -> 0 | L183: =IF(AND(F172=3, G172="VIC"), D157, 0) -> 0 | M183: =IF(AND(F173=3, G173="VIC"), D157, 0) -> 0
A184: =IF(D170="Married", J258,0) -> 0 | B184: =IF(D171="Divorced", K350,0) -> 0 | C184: =IF(D172="Divorced", L350,0) -> 0 | D184: =IF(D173="Divorced", M350,0) -> 0 | H184: Couple | I184: VIC,4 | J184: =IF(AND(F170=4, G170="VIC"), D158, 0) -> 0 | K184: =IF(AND(F171=4, G171="VIC"), D158, 0) -> 0 | L184: =IF(AND(F172=4, G172="VIC"), D158, 0) -> 0 | M184: =IF(AND(F173=4, G173="VIC"), D158, 0) -> 0
A185: =IF(D170="De-Facto", J258,0) -> 0 | B185: =IF(D171="Single", K350,0) -> 0 | C185: =IF(D172="Single", L350,0) -> 0 | D185: =IF(D173="Single", M350,0) -> 0 | H185: Couple | I185: VIC,5 | J185: =IF(AND(F170=5, G170="VIC"), D159, 0) -> 0 | K185: =IF(AND(F171=5, G171="VIC"), D159, 0) -> 0 | L185: =IF(AND(F172=5, G172="VIC"), D159, 0) -> 0 | M185: =IF(AND(F173=5, G173="VIC"), D159, 0) -> 0
A186: =IF(D170="Single", J350,0) -> 0 | B186: =IF(D171="Widowed", K350,0) -> 0 | C186: =IF(D172="Widowed", L350,0) -> 0 | D186: =IF(D173="Widowed", M350,0) -> 0 | H186: Couple | I186: VIC,6 | J186: =IF(AND(F170=6, G170="VIC"), D160, 0) -> 0 | K186: =IF(AND(F171=6, G171="VIC"), D160, 0) -> 0 | L186: =IF(AND(F172=6, G172="VIC"), D160, 0) -> 0 | M186: =IF(AND(F173=6, G173="VIC"), D160, 0) -> 0
A187: =IF(D170="Widowed", J350,0) -> 0 | B187: =IF(D171="Separated", K350,0) -> 0 | C187: =IF(D172="Separated", L350,0) -> 0 | D187: =IF(D173="Separated", M350,0) -> 0 | H187: Couple | I187: VIC,7 | J187: =IF(AND(F170=7, G170="VIC"), D161, 0) -> 0 | K187: =IF(AND(F171=7, G171="VIC"), D161, 0) -> 0 | L187: =IF(AND(F172=7, G172="VIC"), D161, 0) -> 0 | M187: =IF(AND(F173=7, G173="VIC"), D161, 0) -> 0
A188: =IF(D170="Separated", J350,0) -> 0 | B188: =IF(AND(D171="Married", E171="Not In Application"), K258,0) ->  | C188: =IF(AND(D172="De-Facto", E172="Not In Application"), L258,0) ->  | D188: =IF(AND(D173="De-Facto", E173="Not In Application"), M258,0) ->  | H188: Couple | I188: VIC,8 | J188: =IF(AND(F170=8, G170="VIC"), D162, 0) -> 0 | K188: =IF(AND(F171=8, G171="VIC"), D162, 0) -> 0 | L188: =IF(AND(F172=8, G172="VIC"), D162, 0) -> 0 | M188: =IF(AND(F173=8, G173="VIC"), D162, 0) -> 0
A189: =IF(D170="Divorced", J350,0) -> 0 | B189: =IF(AND(D171="De-Facto", E171="Not In Application"), K258,0) ->  | C189: =IF(AND(D172="Married", E172="Not In Application"), L258,0) ->  | D189: =IF(AND(D173="Married", E173="Not In Application"), M258,0) ->  | H189: Couple | I189: VIC,9 | J189: =IF(AND(F170=9, G170="VIC"), D163, 0) -> 0 | K189: =IF(AND(F171=9, G171="VIC"), D163, 0) -> 0 | L189: =IF(AND(F172=9, G172="VIC"), D163, 0) -> 0 | M189: =IF(AND(F173=9, G173="VIC"), D163, 0) -> 0
B190: =IF(AND(D171="Married",E171="Applicant 1"),0,0) ->  | C190: =IF(AND(D172="De-Facto", E172="Applicant 1"), 0,0) ->  | D190: =IF(AND(D173="De-Facto", E173="Applicant 1"), 0,0) ->  | H190: Couple | I190: VIC,10 | J190: =IF(AND(F170=10, G170="VIC"), D164, 0) -> 0 | K190: =IF(AND(F171=10, G171="VIC"), D164, 0) -> 0 | L190: =IF(AND(F172=10, G172="VIC"), D164, 0) -> 0 | M190: =IF(AND(F173=10, G173="VIC"), D164, 0) -> 0
B191: =IF(AND(D171="De-Facto",E171="Applicant 1"),0,0) ->  | C191: =IF(AND(D172="Married", E172="Applicant 1"), 0,0) ->  | D191: =IF(AND(D173="Married", E173="Applicant 1"), 0,0) ->  | H191: Couple | I191: TAS,0 | J191: =IF(AND(F170=0, G170="TAS"), E154, 0) -> 0 | K191: =IF(AND(F171=0, G171="TAS"), E154, 0) -> 0 | L191: =IF(AND(F172=0, G172="TAS"), E154, 0) -> 0 | M191: =IF(AND(F173=0, G173="TAS"), E154, 0) -> 0
B192: =IF(AND(D171="De-Facto",E171="Applicant 3"),K258,0) ->  | C192: =IF(AND(D172="De-Facto", E172="Applicant 2"), 0,0) ->  | D192: =IF(AND(D173="De-Facto", E173="Applicant 2"), 0,0) ->  | H192: Couple | I192: TAS,1 | J192: =IF(AND(F170=1, G170="TAS"), E155, 0) -> 0 | K192: =IF(AND(F171=1, G171="TAS"), E155, 0) -> 0 | L192: =IF(AND(F172=1, G172="TAS"), E155, 0) -> 0 | M192: =IF(AND(F173=1, G173="TAS"), E155, 0) -> 0
B193: =IF(AND(D171="Married",E171="Applicant 3"),K258,0) ->  | C193: =IF(AND(D172="Married", E172="Applicant 2"), 0,0) ->  | D193: =IF(AND(D173="Married", E173="Applicant 2"), 0,0) ->  | H193: Couple | I193: TAS,2 | J193: =IF(AND(F170=2, G170="TAS"), E156, 0) -> 0 | K193: =IF(AND(F171=2, G171="TAS"), E156, 0) -> 0 | L193: =IF(AND(F172=2, G172="TAS"), E156, 0) -> 0 | M193: =IF(AND(F173=2, G173="TAS"), E156, 0) -> 0
B194: =IF(AND(D171="De-Facto",E171="Applicant 4"),K258,0) ->  | C194: =IF(AND(D172="Married",E172="Applicant 4"),L258,0) ->  | D194: =IF(AND(D173="De-Facto", E173="Applicant 3"), 0,0) ->  | H194: Couple | I194: TAS,3 | J194: =IF(AND(F170=3, G170="TAS"), E157, 0) -> 0 | K194: =IF(AND(F171=3, G171="TAS"), E157, 0) -> 0 | L194: =IF(AND(F172=3, G172="TAS"), E157, 0) -> 0 | M194: =IF(AND(F173=3, G173="TAS"), E157, 0) -> 0
B195: =IF(AND(D171="Married",E171="Applicant 4"),K258,0) ->  | C195: =IF(AND(D172="De-Facto",E172="Applicant 4"),L258,0) ->  | D195: =IF(AND(D173="Married", E173="Applicant 3"), 0,0) ->  | H195: Couple | I195: TAS,4 | J195: =IF(AND(F170=4, G170="TAS"), E158, 0) -> 0 | K195: =IF(AND(F171=4, G171="TAS"), E158, 0) -> 0 | L195: =IF(AND(F172=4, G172="TAS"), E158, 0) -> 0 | M195: =IF(AND(F173=4, G173="TAS"), E158, 0) -> 0
B196: =IF(AND(D171="De-Facto",E171="0"),K258,0) ->  | C196: =IF(AND(D172="Married",E172="0"),L258,0) ->  | D196: =IF(AND(D173="De-Facto", E173="0"), M258,0) ->  | H196: Couple | I196: TAS,5 | J196: =IF(AND(F170=5, G170="TAS"), E159, 0) -> 0 | K196: =IF(AND(F171=5, G171="TAS"), E159, 0) -> 0 | L196: =IF(AND(F172=5, G172="TAS"), E159, 0) -> 0 | M196: =IF(AND(F173=5, G173="TAS"), E159, 0) -> 0
B197: =IF(AND(D171="Married",E171="0"),K258,0) ->  | C197: =IF(AND(D172="De-Facto",E172="0"),L258,0) ->  | D197: =IF(AND(D173="Married", E173="0"), M258,0) ->  | H197: Couple | I197: TAS,6 | J197: =IF(AND(F170=6, G170="TAS"), E160, 0) -> 0 | K197: =IF(AND(F171=6, G171="TAS"), E160, 0) -> 0 | L197: =IF(AND(F172=6, G172="TAS"), E160, 0) -> 0 | M197: =IF(AND(F173=6, G173="TAS"), E160, 0) -> 0
H198: Couple | I198: TAS,7 | J198: =IF(AND(F170=7, G170="TAS"), E161, 0) -> 0 | K198: =IF(AND(F171=7, G171="TAS"), E161, 0) -> 0 | L198: =IF(AND(F172=7, G172="TAS"), E161, 0) -> 0 | M198: =IF(AND(F173=7, G173="TAS"), E161, 0) -> 0
A199: =SUM(A184:A189) -> 0 | B199: =SUM(B184:B197) ->  | C199: =SUM(C184:C195) ->  | D199: =SUM(D184:D197) ->  | H199: Couple | I199: TAS,8 | J199: =IF(AND(F170=8, G170="TAS"), E162, 0) -> 0 | K199: =IF(AND(F171=8, G171="TAS"), E162, 0) -> 0 | L199: =IF(AND(F172=8, G172="TAS"), E162, 0) -> 0 | M199: =IF(AND(F173=8, G173="TAS"), E162, 0) -> 0
H200: Couple | I200: TAS,9 | J200: =IF(AND(F170=9, G170="TAS"), E163, 0) -> 0 | K200: =IF(AND(F171=9, G171="TAS"), E163, 0) -> 0 | L200: =IF(AND(F172=9, G172="TAS"), E163, 0) -> 0 | M200: =IF(AND(F173=9, G173="TAS"), E163, 0) -> 0
B201: Living Expenses used for servicing | E201: =IF(E181>E180,E181,E180) ->  | H201: Couple | I201: TAS,10 | J201: =IF(AND(F170=10, G170="TAS"), E164, 0) -> 0 | K201: =IF(AND(F171=10, G171="TAS"), E164, 0) -> 0 | L201: =IF(AND(F172=10, G172="TAS"), E164, 0) -> 0 | M201: =IF(AND(F173=10, G173="TAS"), E164, 0) -> 0
H202: Couple | I202: NT,0 | J202: =IF(AND(F170=0, G170="NT"), F154, 0) -> 0 | K202: =IF(AND(F171=0, G171="NT"), F154, 0) -> 0 | L202: =IF(AND(F172=0, G172="NT"), F154, 0) -> 0 | M202: =IF(AND(F173=0, G173="NT"), F154, 0) -> 0
H203: Couple | I203: NT,1 | J203: =IF(AND(F170=1, G170="NT"), F155, 0) -> 0 | K203: =IF(AND(F171=1, G171="NT"), F155, 0) -> 0 | L203: =IF(AND(F172=1, G172="NT"), F155, 0) -> 0 | M203: =IF(AND(F173=1, G173="NT"), F155, 0) -> 0
H204: Couple | I204: NT,2 | J204: =IF(AND(F170=2, G170="NT"), F156, 0) -> 0 | K204: =IF(AND(F171=2, G171="NT"), F156, 0) -> 0 | L204: =IF(AND(F172=2, G172="NT"), F156, 0) -> 0 | M204: =IF(AND(F173=2, G173="NT"), F156, 0) -> 0
H205: Couple | I205: NT,3 | J205: =IF(AND(F170=3, G170="NT"), F157, 0) -> 0 | K205: =IF(AND(F171=3, G171="NT"), F157, 0) -> 0 | L205: =IF(AND(F172=3, G172="NT"), F157, 0) -> 0 | M205: =IF(AND(F173=3, G173="NT"), F157, 0) -> 0
H206: Couple | I206: NT,4 | J206: =IF(AND(F170=4, G170="NT"), F158, 0) -> 0 | K206: =IF(AND(F171=4, G171="NT"), F158, 0) -> 0 | L206: =IF(AND(F172=4, G172="NT"), F158, 0) -> 0 | M206: =IF(AND(F173=4, G173="NT"), F158, 0) -> 0
H207: Couple | I207: NT,5 | J207: =IF(AND(F170=5, G170="NT"), F159, 0) -> 0 | K207: =IF(AND(F171=5, G171="NT"), F159, 0) -> 0 | L207: =IF(AND(F172=5, G172="NT"), F159, 0) -> 0 | M207: =IF(AND(F173=5, G173="NT"), F159, 0) -> 0
H208: Couple | I208: NT,6 | J208: =IF(AND(F170=6, G170="NT"), F160, 0) -> 0 | K208: =IF(AND(F171=6, G171="NT"), F160, 0) -> 0 | L208: =IF(AND(F172=6, G172="NT"), F160, 0) -> 0 | M208: =IF(AND(F173=6, G173="NT"), F160, 0) -> 0
H209: Couple | I209: NT,7 | J209: =IF(AND(F170=7, G170="NT"), F161, 0) -> 0 | K209: =IF(AND(F171=7, G171="NT"), F161, 0) -> 0 | L209: =IF(AND(F172=7, G172="NT"), F161, 0) -> 0 | M209: =IF(AND(F173=7, G173="NT"), F161, 0) -> 0
H210: Couple | I210: NT,8 | J210: =IF(AND(F170=8, G170="NT"), F162, 0) -> 0 | K210: =IF(AND(F171=8, G171="NT"), F162, 0) -> 0 | L210: =IF(AND(F172=8, G172="NT"), F162, 0) -> 0 | M210: =IF(AND(F173=8, G173="NT"), F162, 0) -> 0
H211: Couple | I211: NT,9 | J211: =IF(AND(F170=9, G170="NT"), F163, 0) -> 0 | K211: =IF(AND(F171=9, G171="NT"), F163, 0) -> 0 | L211: =IF(AND(F172=9, G172="NT"), F163, 0) -> 0 | M211: =IF(AND(F173=9, G173="NT"), F163, 0) -> 0
H212: Couple | I212: NT,10 | J212: =IF(AND(F170=10, G170="NT"), F164, 0) -> 0 | K212: =IF(AND(F171=10, G171="NT"), F164, 0) -> 0 | L212: =IF(AND(F172=10, G172="NT"), F164, 0) -> 0 | M212: =IF(AND(F173=10, G173="NT"), F164, 0) -> 0
H213: Couple | I213: QLD,0 | J213: =IF(AND(F170=0, G170="QLD"), G154, 0) -> 0 | K213: =IF(AND(F171=0, G171="QLD"), G154, 0) -> 0 | L213: =IF(AND(F172=0, G172="QLD"), G154, 0) -> 0 | M213: =IF(AND(F173=0, G173="QLD"), G154, 0) -> 0
H214: Couple | I214: QLD,1 | J214: =IF(AND(F170=1, G170="QLD"), G155, 0) -> 0 | K214: =IF(AND(F171=1, G171="QLD"), G155, 0) -> 0 | L214: =IF(AND(F172=1, G172="QLD"), G155, 0) -> 0 | M214: =IF(AND(F173=1, G173="QLD"), G155, 0) -> 0
H215: Couple | I215: QLD,2 | J215: =IF(AND(F170=2, G170="QLD"), G156, 0) -> 0 | K215: =IF(AND(F171=2, G171="QLD"), G156, 0) -> 0 | L215: =IF(AND(F172=2, G172="QLD"), G156, 0) -> 0 | M215: =IF(AND(F173=2, G173="QLD"), G156, 0) -> 0
H216: Couple | I216: QLD,3 | J216: =IF(AND(F170=3, G170="QLD"), G157, 0) -> 0 | K216: =IF(AND(F171=3, G171="QLD"), G157, 0) -> 0 | L216: =IF(AND(F172=3, G172="QLD"), G157, 0) -> 0 | M216: =IF(AND(F173=3, G173="QLD"), G157, 0) -> 0
H217: Couple | I217: QLD,4 | J217: =IF(AND(F170=4, G170="QLD"), G158, 0) -> 0 | K217: =IF(AND(F171=4, G171="QLD"), G158, 0) -> 0 | L217: =IF(AND(F172=4, G172="QLD"), G158, 0) -> 0 | M217: =IF(AND(F173=4, G173="QLD"), G158, 0) -> 0
H218: Couple | I218: QLD,5 | J218: =IF(AND(F170=5, G170="QLD"), G159, 0) -> 0 | K218: =IF(AND(F171=5, G171="QLD"), G159, 0) -> 0 | L218: =IF(AND(F172=5, G172="QLD"), G159, 0) -> 0 | M218: =IF(AND(F173=5, G173="QLD"), G159, 0) -> 0
H219: Couple | I219: QLD,6 | J219: =IF(AND(F170=6, G170="QLD"), G160, 0) -> 0 | K219: =IF(AND(F171=6, G171="QLD"), G160, 0) -> 0 | L219: =IF(AND(F172=6, G172="QLD"), G160, 0) -> 0 | M219: =IF(AND(F173=6, G173="QLD"), G160, 0) -> 0
H220: Couple | I220: QLD,7 | J220: =IF(AND(F170=7, G170="QLD"), G161, 0) -> 0 | K220: =IF(AND(F171=7, G171="QLD"), G161, 0) -> 0 | L220: =IF(AND(F172=7, G172="QLD"), G161, 0) -> 0 | M220: =IF(AND(F173=7, G173="QLD"), G161, 0) -> 0
H221: Couple | I221: QLD,8 | J221: =IF(AND(F170=8, G170="QLD"), G162, 0) -> 0 | K221: =IF(AND(F171=8, G171="QLD"), G162, 0) -> 0 | L221: =IF(AND(F172=8, G172="QLD"), G162, 0) -> 0 | M221: =IF(AND(F173=8, G173="QLD"), G162, 0) -> 0
H222: Couple | I222: QLD,9 | J222: =IF(AND(F170=9, G170="QLD"), G163, 0) -> 0 | K222: =IF(AND(F171=9, G171="QLD"), G163, 0) -> 0 | L222: =IF(AND(F172=9, G172="QLD"), G163, 0) -> 0 | M222: =IF(AND(F173=9, G173="QLD"), G163, 0) -> 0
H223: Couple | I223: QLD,10 | J223: =IF(AND(F170=10, G170="QLD"), G164, 0) -> 0 | K223: =IF(AND(F171=10, G171="QLD"), G164, 0) -> 0 | L223: =IF(AND(F172=10, G172="QLD"), G164, 0) -> 0 | M223: =IF(AND(F173=10, G173="QLD"), G164, 0) -> 0
H224: Couple | I224: WA,0 | J224: =IF(AND(F170=0, G170="WA"), H154, 0) -> 0 | K224: =IF(AND(F171=0, G171="WA"), H154, 0) -> 0 | L224: =IF(AND(F172=0, G172="WA"), H154, 0) -> 0 | M224: =IF(AND(F173=0, G173="WA"), H154, 0) -> 0
H225: Couple | I225: WA,1 | J225: =IF(AND(F170=1, G170="WA"), H155, 0) -> 0 | K225: =IF(AND(F171=1, G171="WA"), H155, 0) -> 0 | L225: =IF(AND(F172=1, G172="WA"), H155, 0) -> 0 | M225: =IF(AND(F173=1, G173="WA"), H155, 0) -> 0
H226: Couple | I226: WA,2 | J226: =IF(AND(F170=2, G170="WA"), H156, 0) -> 0 | K226: =IF(AND(F171=2, G171="WA"), H156, 0) -> 0 | L226: =IF(AND(F172=2, G172="WA"), H156, 0) -> 0 | M226: =IF(AND(F173=2, G173="WA"), H156, 0) -> 0
H227: Couple | I227: WA,3 | J227: =IF(AND(F170=3, G170="WA"), H157, 0) -> 0 | K227: =IF(AND(F171=3, G171="WA"), H157, 0) -> 0 | L227: =IF(AND(F172=3, G172="WA"), H157, 0) -> 0 | M227: =IF(AND(F173=3, G173="WA"), H157, 0) -> 0
H228: Couple | I228: WA,4 | J228: =IF(AND(F170=4, G170="WA"), H158, 0) -> 0 | K228: =IF(AND(F171=4, G171="WA"), H158, 0) -> 0 | L228: =IF(AND(F172=4, G172="WA"), H158, 0) -> 0 | M228: =IF(AND(F173=4, G173="WA"), H158, 0) -> 0
H229: Couple | I229: WA,5 | J229: =IF(AND(F170=5, G170="WA"), H159, 0) -> 0 | K229: =IF(AND(F171=5, G171="WA"), H159, 0) -> 0 | L229: =IF(AND(F172=5, G172="WA"), H159, 0) -> 0 | M229: =IF(AND(F173=5, G173="WA"), H159, 0) -> 0
H230: Couple | I230: WA,6 | J230: =IF(AND(F170=6, G170="WA"), H160, 0) -> 0 | K230: =IF(AND(F171=6, G171="WA"), H160, 0) -> 0 | L230: =IF(AND(F172=6, G172="WA"), H160, 0) -> 0 | M230: =IF(AND(F173=6, G173="WA"), H160, 0) -> 0
H231: Couple | I231: WA,7 | J231: =IF(AND(F170=7, G170="WA"), H161, 0) -> 0 | K231: =IF(AND(F171=7, G171="WA"), H161, 0) -> 0 | L231: =IF(AND(F172=7, G172="WA"), H161, 0) -> 0 | M231: =IF(AND(F173=7, G173="WA"), H161, 0) -> 0
H232: Couple | I232: WA,8 | J232: =IF(AND(F170=8, G170="WA"), H162, 0) -> 0 | K232: =IF(AND(F171=8, G171="WA"), H162, 0) -> 0 | L232: =IF(AND(F172=8, G172="WA"), H162, 0) -> 0 | M232: =IF(AND(F173=8, G173="WA"), H162, 0) -> 0
... 115 more rows

Sheet References (hidden)
A1: Foreign Exchange Haircut | B1: 0.9 | E1: Dropdowns | J1: Spouse | Y1: Promo Codes
A2: Income | F2: No of Dependants | G2: TAX Deductible | H2: Select | J2: Applicant 1 | K2: Applicant 2 | L2: Applicant 3 | M2: Applicant 4 | O2: Marital Status | Q2: Loan Purpose | U2: Employment Type | W2: Assets | Y2: None | AA2: Income Type | AC2: Product Type | AE2: Applicant Type | AG2: Product Definition | AH2: Base Rate | AI2: Is PL | AJ2: Residency Status | AL2: Applicant | AN2: Repayment Type | AP2: Frequency
A3: Type | B3: Percentage Accepted of Gross | C3: Taxed | F3: 0 | G3: Yes | H3: 30 | J3: Applicant 2 | K3: Applicant 1 | L3: Applicant 1 | M3: Applicant 1 | O3: NA | Q3: Home Extension / Improvement | U3: Full time PAYG | W3: Owner Occupied Property | Y3: Establishment Fee Waiver - Promo til 30-6-17 | AA3: Gross | AC3: Personal Loan Unsecured | AE3: Internal Pioneer | AG3: Select | AH3: 0 | AI3: N | AJ3: Aust/NZ citizen | AL3: Applicant 1 | AN3: Interest Only | AP3: Weekly
A4: ='3_SERVICE'!B26 -> Gross PAYG (Full time, part time, contract) | B4: =100% -> 1 | C4: Yes | F4: 1 | G4: No | H4: 29 | J4: Applicant 3 | K4: Applicant 3 | L4: Applicant 2 | M4: Applicant 2 | O4: Single | Q4: Household Appliances / Furniture | U4: Part time PAYG | W4: Investment Property | Y4: Establishment Fee Waiver- GMY CEO | AA4: Net | AC4: Personal Loan Mortgage Secured | AE4: External Pioneer | AG4: CAR.LOAN.3Y | AH4: 5.99 | AI4: Y | AJ4: Permanent Resident | AL4: Applicant 2 | AN4: Principal and Interest | AP4: Fortnightly
A5: ='3_SERVICE'!B27 -> Gross Casual or Temp Income | B5: =100% -> 1 | C5: Yes | F5: 2 | H5: 28 | J5: Applicant 4 | K5: Applicant 4 | L5: Applicant 4 | M5: Applicant 3 | O5: Married | Q5: Debt Consolidation | U5: Casual | W5: Vehicle | AC5: Personal Loan Other Secured | AE5: Staff Pioneer | AG5: CAR.LOAN.3Y.MORE | AH5: 7.49 | AI5: Y | AJ5: Temporary Resident | AL5: Applicant 1 and 2 | AP5: Monthly
A6: ='3_SERVICE'!B28 -> Gross Overtime | B6: 0.8 | C6: Yes | F6: 3 | H6: 27 | J6: Not in application | K6: Not in application | L6: Not in application | M6: Not in application | O6: De-Facto | Q6: Travel | U6: Contract | W6: Contents | AC6: Home Loans/Investment Pty Loan | AE6: Bare Money | AG6: PL.MORTGAGE.SEC | AH6: 5.5 | AI6: Y | AJ6: Non resident | AP6: Quarterly
A7: ='3_SERVICE'!B29 -> Gross Bonuses | B7: 0.8 | C7: Yes | F7: 4 | H7: 26 | O7: Divorced | Q7: Education | U7: Temp | W7: Savings | AG7: PL.OTHER.SEC | AH7: 10.3 | AI7: Y | AP7: Annual
A8: ='3_SERVICE'!B30 -> Gross Commissions | B8: 0.8 | C8: Yes | F8: 5 | H8: 25 | O8: Separated | Q8: Litigation costs | U8: Self Employed | W8: Investments | AG8: PL.UNSECURED | AH8: 12.99 | AI8: Y
A9: ='3_SERVICE'!B31 -> Employer allowances | B9: =100% -> 1 | C9: Yes | F9: 6 | H9: 24 | O9: Widowed | Q9: Living Expenses | W9: Super | AG9: HL.OWNER.OCCUPIER | AH9: 4.75 | AI9: N
A10: ='3_SERVICE'!B32 -> Rental Income | B10: 0.8 | C10: No | F10: 7 | H10: 23 | Q10: Wedding/Honeymoon | W10: Other | AG10: HL.INVESTMENT | AH10: 4.95 | AI10: N
A11: ='3_SERVICE'!#REF! ->  | B11: 0.8 | C11: No | F11: 8 | H11: 22 | K11: State | Q11: Deposit for house | AG11: HL.BRIDGING | AH11: 4.75 | AI11: N
A12: ='3_SERVICE'!B33 -> Investment Income | B12: 0.8 | C12: Yes | F12: 9 | H12: 21 | K12: ACT | Q12: Owner occupied property purchase | AG12: HL.CONSTRUCTION | AH12: 4.75 | AI12: N
A13: ='3_SERVICE'!B34 -> Government Pension | B13: 1 | C13: No | F13: 10 | H13: 20 | K13: NSW | Q13: Property construction | AG13: SMSF.LOAN.RESIDENTIAL | AH13: 4.75 | AI13: N
A14: ='3_SERVICE'!B35 -> Family Allowance/Childcare support/Child maintenance | B14: 1 | C14: No | F14: 11 | H14: 19 | K14: NT | Q14: Investment property | AG14: SMSF.LOAN.COMMERCIAL | AH14: 5.99 | AI14: N
A15: ='3_SERVICE'!B40 -> 0 | B15: 0 | C15: Yes | F15: 12 | H15: 18 | K15: QLD | Q15: Vacant Land | AG15: BUSINESS.LOAN.COMM | AH15: 5.99 | AI15: N
A16: ='3_SERVICE'!B41 -> Other Income | B16: =100%*B1 -> 0.9 | C16: Yes | H16: 17 | K16: SA | Q16: Refinance | AG16: BUSINESS.LOAN.RESDENT | AH16: 4.75 | AI16: N
A17: NPBT | B17: 1 | C17: Yes | H17: 16 | K17: TAS | Q17: Bridging finance | AG17: Better Choice Owner Occ 90% | AH17: 3.8 | AI17: N
A18: Interest Add Back | B18: 1 | C18: No | H18: 15 | K18: VIC | Q18: Other | AG18: <EXPAT>Better Choice Inv P&I 80% | AH18: 3.79 | AI18: N
A19: Depreciation Add Back | B19: 0.5 | C19: No | H19: 14 | K19: WA | Q19: Business Purpose | AG19: <EXPAT>Better Choice Inv I/O 80% | AH19: 3.94 | AI19: N
A20: Gross Salary Add Back | B20: 1 | C20: Yes | H20: 13 | Q20: Investment - Non residential property | AG20: <EXPAT>Better Choice Owner Occ 80% | AH20: 3.64 | AI20: N
A21: Non Recurring Expenses | B21: 1 | C21: Yes | H21: 12 | AG21: <EXPAT>Better Choice Inv P&I 70% | AH21: 3.64 | AI21: N
A22: Other Add Back | B22: 1 | C22: No | H22: 11 | AG22: <EXPAT>Better Choice Inv I/O 70% | AH22: 3.84 | AI22: N
H23: 10 | AG23: <EXPAT>Better Choice Owner Occ 70% | AH23: 3.44 | AI23: N
A24: Liabilities | H24: 9 | AG24: Fixed Rate 4 Year Owner Occ | AH24: 4.39 | AI24: N
A25: Type | B25: Buffer Percentage | C25: Of | H25: 8 | AG25: Fixed Rate 5 Year Owner Occ | AH25: 4.49 | AI25: N
A26: Credit Card / Overdraft | B26: 0.038 | C26: Limit | H26: 7 | AG26: Fixed Rate 1 Year Investor Loan | AH26: 4.34 | AI26: N
A27: Mortgage | C27: Monthly Repayment | H27: 6 | AG27: Fixed Rate 2 Year Investor Loan | AH27: 4.34 | AI27: N
H28: 5 | AG28: Fixed Rate 3 Year Investor Loan | AH28: 4.34 | AI28: N
A29: New Mortgage | H29: 4 | AG29: Fixed Rate 4 Year Investor Loan | AH29: 4.74 | AI29: N
A30: Assessment Rate | B30: =MAX(5.75%,'3_SERVICE'!C9+2.5%) -> 0.0575 | H30: 3 | AG30: Fixed Rate 5 Year Investor Loan | AH30: 4.89 | AI30: N
H31: 2 | AG31: Average Personal Loan Rate | AH31: =AVERAGE(AH4:AH8) -> 8.454
H32: 1
AG36: Select
AG37: Select
AG38: <EXPAT>Better Choice Inv P&I 80%
AG39: <EXPAT>Better Choice Inv I/O 80%
AG40: <EXPAT>Better Choice Owner Occ 80%
AG41: <EXPAT>Better Choice Inv P&I 70%
AG42: <EXPAT>Better Choice Inv I/O 70%
AG43: <EXPAT>Better Choice Owner Occ 70%
A45: Living Expenses
A48: Select
A49: Y
A50: N
A51: Awaiting Credit Check
A53: Residential Status
A54: Renting
A55: Boarding
A56: Living with parents
A57: Home owner
A60: No - Sole Borrower
A61: Yes - With Partner
A62: Yes - With Non Partner
